Cogmind - Beta 13 @@@ ROGUE MODE // 2024.04.16 @ 11:07:59 Player: Minty Result: Smashed by cave-in Performance ------------- Evolutions (0) 0 Regions Visited (3) 600 Robots Destroyed (12) 60 Value Destroyed (279) 279 Prototype IDs (0) 0 Alien Tech Used (0) 0 Bonus (-13) -13 TOTAL SCORE: 926 Bonus ------- Friendly Fire -13 Cogmind --------- Core Integrity 0/250 Matter 300/300 Energy 100/100 System Corruption 3% Temperature Cool (0) Movement Rolling (95) Ox1 Location -10/Subcaves Parts ------- > --- POWER (1) -------- (None) > --- PROPULSION (2) --- Wheel > --- UTILITY (2) ------ Improved Heat Sink Medium Storage Unit > --- WEAPON (2) ------- Beamcaster Heavy Battle Rifle > --- INVENTORY (10) --- Light Treads Light Treads Flightbrick Particle Gun Particle Gun Enhanced Flamer Mace Peak State ------------ > --- POWER ------------ Light Ion Engine > --- PROPULSION ------- Wheel Compact Wheel > --- UTILITY ---------- Improved Heat Sink Medium Storage Unit > --- WEAPON ----------- Beamcaster Heavy Battle Rifle > --- INVENTORY -------- Ion Engine Light Treads Light Treads Flightbrick Particle Gun Particle Gun Mace [Rating: 20] Favorites ----------- Power Light Ion Engine Engine Light Ion Engine Propulsion Aluminum Leg Leg Aluminum Leg Wheel Subdweller Monowheel Utility Improved Heat Sink Device Improved Heat Sink Storage Medium Storage Unit Weapon Particle Gun Energy Gun Particle Gun Ballistic Gun Heavy Battle Rifle Impact Weapon Mace Build | -11 -10 -10 -10 ------- Run | Yrd Mat Min Sub Slots Evolved . | . . . . Power . | . . . . Propulsion . | . . . . Utility . | . . . . Weapon . | . . . . Parts Attached 13 | . 4 1 8 Power 1 | . . . 1 Engine 1 | . . . 1 Core . | . . . . Reactor . | . . . . Propulsion 4 | . . . 4 Treads . | . . . . Leg . | . . . . Wheel 4 | . . . 4 Hover . | . . . . Flight . | . . . . Utility 2 | . 2 . . Device 1 | . 1 . . Storage 1 | . 1 . . Processor . | . . . . Hackware . | . . . . Protection . | . . . . Artifact . | . . . . Weapon 6 | . 2 1 3 Energy Gun 4 | . 2 . 2 Energy Cannon . | . . . . Ballistic Gun 1 | . . . 1 Ballistic Cannon . | . . . . Launcher . | . . . . Special Weapon . | . . . . Impact Weapon 1 | . . 1 . Slashing Weapon . | . . . . Piercing Weapon . | . . . . Special Melee Weapon . | . . . . Unidentified Prototypes . | . . . . Parts Lost 2 | . . . 2 Power 1 | . . . 1 Propulsion 1 | . . . 1 Utility . | . . . . Weapon . | . . . . Highest Loss Streak 2 | . . . 2 To Critical Strikes . | . . . . Average Slot Usage (%) 98 | . 95 100 99 Engine 14 | . 14 14 14 Leg 10 | . 28 28 4 Wheel 16 | . . . 23 Device 13 | . 10 14 14 Storage 14 | . 14 14 14 Energy Gun 22 | . 28 25 20 Ballistic Gun 5 | . . . 7 Naked Turns . | . . . . Heaviest Build 25 | 10 20 20 25 Greatest Support 40 | 20 20 20 40 Greatest Overweight (x) 1 | . . . 1 Average Overweight (x) . | . . . . Largest Inventory Capacity 10 | . 10 10 10 Average Capacity 9 | . 9 10 10 Most Carried 10 | . 8 8 10 Average Carried 9 | . 7 8 9 Final Capacity 10 | 8 10 10 10 Final Carried 10 | 6 8 8 10 Class Distribution -------------------- 76% | Mutant 23% | Scavenger-Mutant Dominant Class ---------------- Mutant | -10/Materials Mutant | -10/Mines Mutant | -10/Subcaves Resources | -11 -10 -10 -10 ----------- Run | Yrd Mat Min Sub Matter Collected 345 | 156 84 . 105 Remotely . | . . . . Salvage Created 426 | . 329 46 51 Parts 19 | . 14 5 . Haulers Intercepted 1 | . 1 . . Recyclers Shooed . | . . . . Parts Field Recycled . | . . . . Retrieved Matter . | . . . . Parts Self-Destructed 5 | . . . 5 Prevented . | . . . . Kills | -11 -10 -10 -10 ------- Run | Yrd Mat Min Sub Combat Hostiles Destroyed 7 | . 6 . 1 Guns 7 | . 6 . 1 Classes Destroyed 5 | . 3 1 1 Worker 3 | . 1 2 . Tunneler 1 | . . 1 . Hauler 1 | . 1 . . Grunt 6 | . 6 . . Subdweller 1 | . . . 1 Best Kill Streak 3 | . 3 3 1 Combat Bots Only 2 | . 2 . 1 Max Kills in Single Turn 2 | . 2 1 1 Gunslinging . | . . . . Exploded . | . . . . Melee . | . . . . Uniques/NPCs Destroyed . | . . . . Combat | -11 -10 -10 -10 -------- Run | Yrd Mat Min Sub Hostile Shots Fired 31 | . 10 . 21 Missed 10 | . 6 . 4 Damage Taken 680 | . 46 . 634 Core 275 | . 35 . 240 Absorbed by Shields . | . . . . Core Remaining (%) 100 | 100 . . . Volleys Fired 44 | . 16 6 22 Largest 2 | . 2 2 2 Hottest 140 | . 130 130 140 Shots Fired 88 | . 32 12 44 Gun 88 | . 32 12 44 Cannon . | . . . . Launcher . | . . . . Special . | . . . . Kinetic 5 | . . . 5 Thermal 83 | . 32 12 39 Explosive . | . . . . Electromagnetic . | . . . . Robot Hit Streak 11 | . 4 1 11 Robot Miss Streak 3 | . 3 3 2 Penetration Max . | . . . . Secondary Targets . | . . . . Shots Hit Robots 46 | . 17 1 28 Core Hits 19 | . 11 3 5 Critical Kills . | . . . . Critical Parts Destroyed . | . . . . Critical Strikes 3 | . 1 . 2 Burn 3 | . 1 . 2 Melee Attacks 2 | . . 2 . Impact 2 | . . 2 . Slashing . | . . . . Piercing . | . . . . Sneak Attacks . | . . . . Combat Hostiles . | . . . . Follow-up Attacks . | . . . . Damage Inflicted 870 | . 305 45 520 Guns 870 | . 305 45 520 Cannons . | . . . . Explosions . | . . . . Melee . | . . . . Ramming . | . . . . Kinetic 64 | . . . 64 Thermal 806 | . 305 45 456 Explosive . | . . . . Electromagnetic . | . . . . Impact . | . . . . Slashing . | . . . . Piercing . | . . . . Highest Corruption . | . . . . Average Corruption . | . . . . Corruption Purged . | . . . . Corruption Blocked . | . . . . Overload Shots . | . . . . Overflow Damage . | . . . . Projectiles . | . . . . Explosions . | . . . . Melee . | . . . . Knockbacks . | . . . . Impact . | . . . . Kinetic . | . . . . Secondary . | . . . . Self-Inflicted Damage . | . . . . Shots . | . . . . Rammed . | . . . . Targets Rammed . | . . . . Kicked . | . . . . Crushed . | . . . . Highest Temperature 207 | . 207 135 1 Average Temperature 56 | . 56 61 1 Received Heat Transfer 87 | . 24 . 63 Siege Activations . | . . . . Robots Corrupted . | . . . . Combat Hostiles . | . . . . Parts Fried . | . . . . Impact Corruptions . | . . . . Robots Melted . | . . . . Combat Hostiles . | . . . . Parts Melted 2 | . 2 . . Heat Transferred 1998 | . 777 111 1110 Parts Sabotaged . | . . . . Parts Stolen . | . . . . Parts Stripped . | . . . . Power Chain Reactions . | . . . . Alert | -11 -10 -10 -10 ------- Run | Yrd Mat Min Sub Peak Influence 208 | . 208 123 . Initial 81 | . . 81 . Average 102 | . 103 99 . Maximum Alert Level 1 | . 1 . . Low Security (%) 90 | . 89 100 . Level 1 9 | . 10 . . Level 2 . | . . . . Level 3 . | . . . . Level 4 . | . . . . Level 5 . | . . . . High Security . | . . . . Max Security . | . . . . Squads Dispatched 3 | . 3 . . Investigation 1 | . 1 . . Extermination . | . . . . Reinforcement 2 | . 2 . . Assault . | . . . . Garrison . | . . . . Intercept . | . . . . Searches Triggered . | . . . . Construction Impeded . | . . . . Haulers Reinforced . | . . . . Active Scanning Responses . | . . . . Cargo Convoy Interrupts . | . . . . Stealth | -11 -10 -10 -10 --------- Run | Yrd Mat Min Sub Distress Signals . | . . . . Communications Jammed . | . . . . Distress Signals . | . . . . Times Spotted 24 | . 11 . 13 Peak Tracking Total 6 | . 2 . 6 Tactical Retreats . | . . . . Traps | -11 -10 -10 -10 ------- Run | Yrd Mat Min Sub Traps Triggered . | . . . . Indirectly . | . . . . Trap Hack Attempts . | . . . . Triggered . | . . . . Disarmed . | . . . . Reprogrammed . | . . . . Reused . | . . . . Traps Extracted . | . . . . Installed . | . . . . Triggered . | . . . . Machines | -11 -10 -10 -10 ---------- Run | Yrd Mat Min Sub Machines Disabled 1 | . . 1 . Max in Single Turn 1 | . . 1 . Machines Repaired . | . . . . Machines Dismantled . | . . . . Machines Sabotaged . | . . . . Overloaded Fab Kills . | . . . . Hacking | -11 -10 -10 -10 --------- Run | Yrd Mat Min Sub Machines Accessed 1 | . 1 . . Terminals 1 | . 1 . . Fabricators . | . . . . Repair Stations . | . . . . Recycling Units . | . . . . Scanalyzers . | . . . . Garrison Access . | . . . . Total Hacks 2 | . 2 . . Successful . | . . . . Failed 2 | . 2 . . Catastrophic 1 | . 1 . . Database Lockouts . | . . . . Manual 2 | . 2 . . Terminals 2 | . 2 . . Fabricators . | . . . . Repair Stations . | . . . . Recycling Units . | . . . . Scanalyzers . | . . . . Garrison Access . | . . . . Terminal Hacks . | . . . . Fabricator Hacks . | . . . . Repair Station Hacks . | . . . . Recycling Unit Hacks . | . . . . Scanalyzer . | . . . . Garrison Access Hacks . | . . . . Unauthorized Hacks . | . . . . Terminals . | . . . . Fabricators . | . . . . Repair Stations . | . . . . Recycling Units . | . . . . Scanalyzers . | . . . . Garrison Access . | . . . . Data Cores Recovered . | . . . . Used . | . . . . Hacking Detections 1 | . 1 . . Full Trace Events 1 | . 1 . . Feedback Events . | . . . . Feedback Blocked . | . . . . Robot Schematics Acquired . | . . . . Robots Built . | . . . . Authchips . | . . . . Time . | . . . . Total Robot Build Rating . | . . . . Part Schematics Acquired . | . . . . Parts Built . | . . . . Authchips . | . . . . Time . | . . . . Total Part Build Rating . | . . . . Parts Repaired . | . . . . Time . | . . . . Parts Recycled . | . . . . Recycled Matter . | . . . . Retrieved Matter . | . . . . Retrieved Components . | . . . . Parts Scanalyzed . | . . . . Part Schematics Acquired . | . . . . Parts Damaged . | . . . . Bothacking | -11 -10 -10 -10 ------------ Run | Yrd Mat Min Sub Used RIF Installer . | . . . . Robots Hacked . | . . . . Non-combat . | . . . . Combat . | . . . . Robot Hacks Applied . | . . . . Relay Couplers Released . | . . . . Fabnet Peak Effective % . | . . . . Robots Rewired . | . . . . Allies Hacked . | . . . . Hacks Repelled . | . . . . Allies | -11 -10 -10 -10 -------- Run | Yrd Mat Min Sub Total Allies . | . . . . Largest Group . | . . . . Highest-Rated Group . | . . . . Highest-Rated Ally . | . . . . Total Orders . | . . . . Ally Attacks . | . . . . Total Damage . | . . . . Kills . | . . . . Allies Corrupted . | . . . . Allies Melted . | . . . . Intel | -11 -10 -10 -10 ------- Run | Yrd Mat Min Sub Robot Analysis Total . | . . . . Derelict Logs Recovered 1 | . . . 1 Drone Launches . | . . . . Drone Recoveries . | . . . . Exploration | -11 -10 -10 -10 ------------- Run | Yrd Mat Min Sub Turns Passed 1333 | . 319 67 947 Spaces Moved 888 | 1 219 36 632 Core . | . . . . Treads . | . . . . Legs 346 | 1 219 36 90 Wheels 542 | . . . 542 Hover . | . . . . Flight . | . . . . Fastest Speed 90 | 120 120 120 90 Average Speed 107 | 120 120 120 102 Slowest Speed 190 | 120 120 120 190 Overloaded Moves . | . . . . Propulsion Burnouts . | . . . . Robots Hopped . | . . . . Cave-ins Triggered 1 | . . . 1 Exploration Rate (%) 24 | 3 34 14 47 Regions Visited 3 Branch Regions 2 Pre-discovered Areas . | . . . . Known Exits Taken . | . . . . Unknown Exits Taken 3 | 1 1 1 . Scrap Searched 1 | . . . 1 Spaces Dug 2 | . . . 2 Terrain Destroyed 14 | . . 12 2 Melee . | . . . . Projectile 2 | . . . 2 AOE 12 | . . 12 . Terrain Rammed . | . . . . Walls Destroyed . | . . . . Machines Disabled . | . . . . Actions | -11 -10 -10 -10 --------- Run | Yrd Mat Min Sub Total 1179 | . 245 44 890 Wait 216 | . . . 216 Move 884 | . 218 35 631 Hop . | . . . . Pick Up 6 | . 3 . 3 Fast Attach 4 | . 1 . 3 Attach 2 | . . . 2 Detach 2 | . . . 2 Swap 7 | . 3 1 3 Drop 12 | . 4 . 8 Fire 44 | . 16 6 22 Melee 2 | . . 2 . Ram . | . . . . Kick . | . . . . Crush . | . . . . Escape Stasis . | . . . . Rewire . | . . . . Trap . | . . . . Miscellaneous . | . . . . Route ------- -11/Scrapyard -10/Materials -10/Mines -10/Subcaves History --------- Turn | Location | Event 1 | -11/Scrapyard | Discovered new exit (range 0) 1 | -11/Scrapyard | Entered Materials 288 | -10/Materials | Discovered new exit (range 11) 308 | -10/Materials | Build established: Mutant 320 | -10/Materials | Entered Mines 370 | -10/Mines | Met a Derelict bent on vengeance 382 | -10/Mines | Discovered new exit (range 4) 387 | -10/Mines | Entered Subcaves 471 | -10/Subcaves | Ambushed by swarm of Subdwellers 696 | -10/Subcaves | Learned location of 1 exit from Materials 702 | -10/Subcaves | A Subdweller sparked back to life 702 | -10/Subcaves | A Subdweller sparked back to life 702 | -10/Subcaves | A Subdweller sparked back to life 761 | -10/Subcaves | Core integrity fell below 50% 817 | -10/Subcaves | Build established: Scavenger-Mutant 834 | -10/Subcaves | Found Prototype Flight Unit 1119 | -10/Subcaves | Shifting Twisted Machinery released Sub. Power Source 1121 | -10/Subcaves | Build established: Mutant 1184 | -10/Subcaves | Shifting Twisted Machinery released Sub. Optics 1284 | -10/Subcaves | Shifting Twisted Machinery released Scrap Shield 1289 | -10/Subcaves | Shifting Twisted Machinery released Mak. Kinetic Plating 1321 | -10/Subcaves | Ambushed by Subdweller buried in earth 1334 | -10/Subcaves | Crushed by falling debris 1334 | -10/Subcaves | Smashed by cave-in Last Messages --------------- 00868_ Subatomizers dissect the Sub. Monowheel. 00886_ AD-X49(O) puts together Enh. Flamer. 00893_ Subatomizers dissect the Sub. Monowheel. 00910_ Dropped Lgt. Ion Engine. 00911_ Acquired Enh. Flamer. 01086_ Acquired 30 matter. Sub. Power Source falls loose from the Twisted Machinery. Sub. Optics falls loose from the Twisted Machinery. Scrap Shield falls loose from the Twisted Machinery. Mak. Kinetic Plating falls loose from the Twisted Machinery. 01322_ 5U-VK4(R): "ARGHSUB!" 01327_ 5U-VK4(R) suffers critical hit (Burn). 01330_ 5U-VK4(R) destroyed. 01333_ Acquired 15 matter. 01334_ The unstable cave ceiling collapses. 01334_ Crushed by falling debris. 01334_ Ion Engine destroyed. 01334_ System corrupted by crushing effect (+1). 01334_ Com. Wheel destroyed. 01334_ System corrupted by crushing effect (+2). Map ----- +----------------------------------------------------+ | ## ##########?????????????????????? | | ### ## ######????????????????? | | ##?##### #????????????????? | | #?##???## #???????????????? | | ## #????#### ########???????????????? | | #???????# ##?##???????????????????? | | #??????## ## ##??????????????????? | | #??????# ###????????????????? | | ## #???#??# #????????????????? | | ### #?# ## #?# #????????????????? | | #?# #?? ### ###### ##????????????????? | | ### #??## ?# #####??????##?????????????????? | | ## #???? ##??????##??????????????????????? | | ## ##??? #??##### #??????????????????????? | | ?# ##??? ### ? ##?????????????????????? | | ?## ""#????# ? ##????????????????????? | | ### " #?????? #? ##???????????????????? | | " #???????? ### #???????????????????? | | "#####???????# ## ????????????????????? | | ##?#"#????????# #??????????????????????? | | ####?## #???????## #??????????????????????? | | "##???##" ##??????# ##g #??????????????????????? | | "######" ##?????# ## g##??????????????????????? | | ## " ####### ####|#??????????????????????? | | ?# "" # ## ##?#%#??????????????????????? | | ?# !"## #?#@#??????????????????????? | | ## ""### ###?## ?????????????????????? | | "" #### # ##????? ???????????????????? | | "" ##??##########??????### ?????????????????? | | "" #???????????????????????# ???????????????? | | "" ##?????????????????????????# #??????????????? | | ######????????????????????????????#??????????????? | | ?????????????????????????????????????????????????? | | ?????????????????????????????????????????????????? | | ?????????????????????????????????????????????????? | | ?????????????????????????????????????????????????? | | ?????????????????????????????????????????????????? | | ?????????????????????????????????????????????????? | | ?????????????????????????????????????????????????? | | ?????????????????????????????????????????????????? | | ?????????????????????????????????????????????????? | | ?????????????????????????????????????????????????? | | ?????????????????????????????????????????????????? | | ?????????????????????????????????????????????????? | | ?????????????????????????????????????????????????? | | ?????????????????????????????????????????????????? | | ?????????????????????????????????????????????????? | | | | | | | +----------------------------------------------------+ Best States ------------- Heat Dissipation 39 Energy Generation 10 Energy Capacity 250 Matter Stores 300 Matter Capacity 300 Sight Range 16 Terrain Scan Density 10 Evasion (%) 55 Item Schematics ----------------- None Robot Schematics ------------------ None Fabricated ------------ Nothing Alien Tech Used ----------------- None Achievements -------------- None Challenges ------------ None Game ------ Seed CloakMachineStreamer Manual? 0 Play Time 00:10:27 Cumulative 718.9 hours Start 2024.04.16 @ 11:01:18 End 2024.04.16 @ 11:07:59 Sessions 1 Manual Loads 0 Difficulty Rogue Special Mode None Game No. 770 Rogue 495 Adventurer 123 Explorer 152 Win Type - Total 26 Types 20/0/4/1/0/0/0/1/0 Lore% 83 Gallery% 91 Achievement% 76 Wizard Run 0 Options --------- Layout 0 ASCII 0 Keyboard 1 Movement Numpad Keybinds 0 Fullscreen 2 Font 18/Terminus Map View 76x50 Zoom Use 0% Tactical HUD 1 Map Filters NONE Filters NONE Steam 1 RUN: 31992201-5d72-4719-9258-76b5eed667a3